bitfinex-derivatives/quotes_SOLF0:USTF0_20240924
["timestamp","ask_amount","ask_price","bid_price","bid_amount"]
[1727213705586,1.3403,148.5,148.41,9.33]
[1727213705587,1.2993,148.47,148.41,9.33]
[1727213705790,1.2993,148.47,148.45,9.33]
[1727213706186,1.2993,148.47,148.36,6.42373954]
[1727213706491,1.2993,148.47,148.44,9.33]
[1727213707288,3.3679,148.46,148.43,9.33]
[1727213708589,4.6668,148.47,148.43,12.6984]
[1727213709090,4.6668,148.47,148.44,3.3681]
[1727213709283,4.6668,148.47,148.43,9.33]
[1727213709690,4.6668,148.47,148.43,12.6983]
[1727213711094,4.6668,148.47,148.44,3.3681]
[1727213711588,10.6703,148.5,148.45,12.6979]
[1727213712088,4.7072,148.5,148.45,9.33]
[1727213712291,4.7072,148.5,148.47,9.33]
[1727213712891,3.367,148.49,148.47,9.33]
[1727213713197,3.367,148.49,148.46,9.33]
[1727213714594,3.3669,148.5,148.46,9.33]
[1727213714795,3.3669,148.5,148.47,9.33]
[1727213715199,3.3669,148.5,148.47,12.6974]
[1727213715603,3.3669,148.5,148.46,12.6976]
[1727213716003,3.367,148.49,148.46,9.33]
[1727213720910,3.3669,148.5,148.46,12.6976]
[1727213722513,3.3669,148.5,148.47,9.33]
[1727213723013,1.4198,148.52,148.49,9.33]
[1727213723014,4.7862,148.52,148.49,9.33]
[1727213724607,4.7862,148.52,148.49,12.6969]
[1727213724608,1.4198,148.52,148.49,12.6969]
[1727213725613,4.7863,148.52,148.49,9.33]
[1727213726506,3.3666,148.51,148.49,9.33]
[1727213726810,6.7285,148.62,148.5,12.6967]
[1727213727010,75.79178007,148.55,148.5,12.6967]
[1727213727314,3.3662,148.53,148.5,12.6967]
[1727213729103,3.366,148.54,148.51,9.33]
[1727213729512,66.46178007,148.55,148.51,9.33]
[1727213729909,66.46178007,148.55,148.51,12.6965]
[1727213730617,3.3659,148.54,148.51,12.6965]
[1727213731117,9.33,148.57,148.51,9.33]
[1727213731305,4.1932,148.6,148.47,4.6999819]
[1727213731306,9.33,148.58,148.53,9.33]
[1727213732224,3.3658,148.55,148.53,9.33]
[1727213736718,3.3658,148.55,148.53,12.6961]
[1727213736919,9.33,148.57,148.47,4.6999819]
[1727213737112,9.33,148.53,148.49,9.33]
[1727213737311,9.33,148.53,148.49,12.6968]
[1727213737620,3.3665,148.52,148.49,12.6968]
[1727213738317,9.33,148.51,148.45,0.4051]
[1727213738509,9.33,148.51,148.35,226.0]
[1727213738510,9.33,148.49,148.41,1.7784]
[1727213738822,9.33,148.47,148.42,90.17]
[1727213739118,3.3678,148.46,148.43,3.3682]
[1727213739316,9.33,148.47,148.42,9.33]
[1727213740216,9.33,148.47,148.43,9.33]
[1727213740918,12.6975,148.47,148.44,82.70369423]
[1727213741516,3.3675,148.47,148.44,82.70369423]
[1727213742721,3.3677,148.46,148.44,79.33559423]
[1727213742919,9.33,148.48,148.44,79.33559423]
[1727213743119,9.33,148.48,148.44,88.66559423]
[1727213743523,3.3676,148.47,148.44,92.03369423]
[1727213744418,9.33,148.48,148.45,3.3678]
[1727213744824,9.33,148.48,148.44,88.66559423]
[1727213745524,3.3676,148.47,148.44,12.6981]
[1727213747621,9.33,148.48,148.45,12.6978]
[1727213747622,3.3674,148.48,148.45,12.6978]
[1727213747824,9.33,148.49,148.45,9.33]
[1727213748726,3.3676,148.47,148.45,9.33]
[1727213749121,3.44877907,148.51,148.44,9.33]
[1727213749122,9.33,148.48,148.44,9.33]
[1727213749322,3.3678,148.46,148.44,9.33]
[1727213750021,3.3678,148.46,148.45,9.33]
[1727213751024,3.3676,148.47,148.45,9.33]
[1727213753420,3.3676,148.47,148.45,12.6979]
[1727213754421,3.3677,148.46,148.41,80.587325]
[1727213754625,3.3677,148.46,148.44,9.33]
[1727213755028,3.3676,148.47,148.45,9.33]
[1727213757834,9.33,148.48,148.44,9.33]
[1727213758827,3.368,148.45,148.44,9.33]
[1727213760025,3.3678,148.46,148.44,9.33]
[1727213762532,3.3678,148.46,148.44,12.6981]
[1727213762732,3.3676,148.47,148.45,9.33]
[1727213762927,9.33,148.49,148.45,9.33]
[1727213763932,3.3677,148.46,148.45,9.33]
[1727213765737,3.3674,148.48,148.45,12.6978]
[1727213766035,3.3674,148.48,148.46,9.33]
[1727213766331,3.3674,148.48,148.46,12.6976]
[1727213766531,3.3674,148.48,148.46,9.33]
[1727213767438,9.33,148.5,148.46,9.33]
[1727213767439,3.3675,148.47,148.46,9.33]
[1727213770232,3.3675,148.47,148.45,12.6978]
[1727213770730,6.22829043,148.54,148.46,9.33]
[1727213770932,2.8032,148.54,148.5,9.33]
[1727213771137,2.8032,148.54,148.52,9.33]
[1727213771337,4.801,148.54,148.52,9.33]
[1727213771831,3.3661,148.53,148.52,9.33]
[1727213774038,12.1333,148.59,148.52,9.33]
[1727213774232,13.5594,148.59,148.53,9.33]
[1727213774833,3.3657,148.55,148.52,9.33]
[1727213775632,3.3657,148.55,148.52,12.6962]
[1727213775832,65.57343063,148.58,148.54,9.33]
[1727213776033,65.57343063,148.58,148.48,4.87509387]
[1727213776034,4.2294,148.59,148.56,9.33]
[1727213777036,3.3651,148.58,148.56,9.33]
[1727213777437,4.2294,148.59,148.48,5.27849387]
[1727213777438,13.5594,148.59,148.54,9.33]
[1727213777846,3.3655,148.56,148.54,9.33]
[1727213780744,3.3652,148.58,148.54,9.33]
[1727213780940,13.5594,148.59,148.55,9.33]
[1727213781138,4.2294,148.59,148.55,9.33]
[1727213781446,3.365,148.58,148.55,12.6956]
[1727213781842,3.365,148.58,148.57,9.33]
[1727213782035,6.2041,148.59,148.57,9.33]
[1727213782234,6.2041,148.59,148.58,9.33]
[1727213782235,4.7909,148.59,148.58,9.33]
[1727213783249,4.7909,148.59,148.56,12.6953]
[1727213784844,3.3646,148.6,148.58,9.33]
[1727213785050,3.3646,148.6,148.59,9.33]
[1727213785440,9.33,148.64,148.59,9.33]
[1727213785842,3.364,148.63,148.61,9.33]
[1727213792953,3.364,148.63,148.61,12.6943]
[1727213796357,12.74717171,148.66,148.51,6.7328]
[1727213796651,9.33,148.64,148.6,9.33]
[1727213797354,3.364,148.63,148.6,12.6945]
[1727213797942,3.364,148.63,148.61,9.33]
[1727213798345,3.364,148.63,148.61,12.6942]
[1727213799860,3.3637,148.64,148.61,12.6942]
[1727213801761,3.3637,148.64,148.62,9.33]
[1727213802266,6.22614858,148.67,148.62,9.33]
[1727213802456,6.22614858,148.67,148.56,3.31819264]
[1727213802457,6.22614858,148.67,148.63,9.33]
[1727213802759,6.22614858,148.67,148.64,9.33]
[1727213803353,3.3634,148.65,148.63,9.33]
[1727213804854,3.3634,148.65,148.62,3.3639]
[1727213805060,3.3634,148.65,148.62,12.6939]
[1727213806959,3.3636,148.64,148.62,12.6939]
[1727213812082,3.3633,148.66,148.63,12.6937]
[1727213815277,12.1619,148.67,148.62,3.3639]
[1727213815777,3.3637,148.64,148.62,3.3639]
[1727213820082,3.364,148.63,148.57,1.3067]
[1727213820279,3.364,148.63,148.6,9.33]
[1727213820483,9.33,148.64,148.51,344.7329]
[1727213820786,3.3644,148.61,148.58,3.3648]
[1727213820987,3.3644,148.61,148.58,12.6948]
[1727213821391,12.6941,148.62,148.59,3.3647]
[1727213822488,12.6941,148.62,148.58,9.33]
[1727213822489,9.33,148.62,148.58,9.33]
[1727213823792,3.3643,148.61,148.58,12.6949]
[1727213827187,9.33,148.63,148.58,9.33]
[1727213827694,9.33,148.63,148.58,12.6948]
[1727213827695,3.3642,148.62,148.58,12.6948]
[1727213830396,3.3642,148.62,148.58,3.3648]
[1727213830598,3.3642,148.62,148.59,9.33]
[1727213836695,3.3637,148.64,148.61,3.3641]
[1727213836892,4.0987,148.69,148.63,9.33]
[1727213837199,12.0662,148.69,148.65,9.33]
[1727213837597,3.30394422,148.68,148.65,9.33]
[1727213837794,3.3632,148.66,148.65,9.33]
[1727213838395,3.363,148.67,148.65,9.33]
[1727213841900,3.363,148.67,148.64,12.6936]
[1727213842800,82.15021063,148.7,148.65,9.33]
[1727213843018,82.15021063,148.7,148.68,9.33]
[1727213843292,82.15021063,148.7,148.69,9.33]
[1727213847199,9.33,148.76,148.69,12.6925]
[1727213847400,9.33,148.76,148.7,9.33]
[1727213847606,3.3617,148.73,148.7,9.33]
[1727213847900,3.3617,148.73,148.69,12.6924]
[1727213849900,3.3617,148.73,148.7,3.3622]
[1727213850110,9.33,148.75,148.7,3.3622]
[1727213851005,2.8213,148.78,148.7,12.6922]
[1727213851204,9.33,148.76,148.7,12.6922]
[1727213851607,3.3615,148.74,148.71,3.362]
[1727213853806,3.3615,148.74,148.7,12.6922]
[1727213854412,3.3616,148.73,148.7,12.6922]
[1727213855409,3.3614,148.74,148.7,12.6922]
[1727213856011,3.3616,148.73,148.7,12.6922]
[1727213856313,3.3616,148.73,148.7,3.3622]
[1727213860422,3.3616,148.73,148.66,3.36372199]
[1727213860423,3.3614,148.74,148.71,12.692]
[1727213860819,3.3614,148.74,148.72,9.33]
[1727213861120,9.33,148.77,148.72,9.33]
[1727213862319,3.3614,148.74,148.72,9.33]
[1727213865123,3.3616,148.73,148.71,9.33]
[1727213865823,9.33,148.73,148.67,48.30806307]
[1727213866009,9.33,148.73,148.68,9.33]
[1727213866917,3.3619,148.72,148.69,3.3625]
[1727213867619,9.33,148.72,148.67,48.30806307]
[1727213867817,9.33,148.71,148.67,48.30806307]
[1727213868121,3.3625,148.69,148.67,57.63806307]
[1727213868414,3.40430131,148.73,148.67,48.30806307]
[1727213868415,9.33,148.7,148.67,48.30806307]
[1727213869114,9.33,148.69,148.65,9.33]
[1727213869321,3.3629,148.68,148.64,12.6935]
[1727213872324,9.33,148.69,148.64,9.33]
[1727213873324,3.3631,148.67,148.64,9.33]
[1727213874017,3.3632,148.66,148.64,9.33]
[1727213878532,4.77289763,148.71,148.64,12.6934]
[1727213878730,9.33,148.69,148.64,12.6934]
[1727213879628,3.3631,148.67,148.64,12.6934]
[1727213880425,3.3633,148.66,148.64,9.33]
[1727213887731,3.363,148.67,148.65,9.33]
[1727213888128,9.33,148.7,148.65,9.33]
[1727213888328,3.3629,148.68,148.65,12.6934]
[1727213890428,3.363,148.67,148.64,3.3636]
[1727213890634,9.33,148.66,148.59,1.3333]
[1727213890938,4.77289763,148.71,148.58,4.64696056]
[1727213891138,9.33,148.64,148.59,9.33]
[1727213891332,3.3639,148.63,148.59,9.33]
[1727213891733,9.33,148.64,148.59,9.33]
[1727213892643,3.3639,148.63,148.59,12.6946]
[1727213893738,12.6937,148.64,148.6,3.3645]
[1727213901047,3.3638,148.63,148.6,3.3645]
[1727213902848,3.3641,148.62,148.59,12.6947]
[1727213904138,3.3643,148.61,148.59,9.33]
[1727213904342,10.7418,148.64,148.59,9.33]
[1727213905245,3.3641,148.62,148.59,9.33]
[1727213905646,3.3641,148.62,148.59,12.6947]
[1727213906642,3.3641,148.62,148.6,9.33]
[1727213910746,3.3641,148.62,148.59,3.3647]
[1727213910747,3.3641,148.62,148.59,12.6947]
[1727213916748,3.3643,148.61,148.59,9.33]
[1727213916956,3.3643,148.61,148.58,12.6949]
[1727213925453,3.3645,148.6,148.58,9.33]
[1727213929359,9.33,148.6,148.53,1.4002]
[1727213929655,9.33,148.6,148.55,57.64325337]
[1727213930055,9.33,148.6,148.55,48.31325337]
[1727213930362,9.33,148.59,148.55,48.31325337]
[1727213930855,3.365,148.58,148.55,48.31325337]
[1727213932055,3.365,148.58,148.55,51.67885337]
[1727213935152,9.33,148.59,148.55,48.31325337]
[1727213935356,9.33,148.57,148.55,48.31325337]
[1727213935757,3.3651,148.58,148.55,48.31325337]
[1727213937161,9.33,148.56,148.41,564.0]
[1727213937363,9.33,148.52,148.48,9.33]
[1727213937666,1.2968,148.57,148.5,12.6966]
[1727213937667,3.366,148.54,148.5,12.6966]
[1727213938164,3.3662,148.53,148.5,12.6966]
[1727213938363,6.7261,148.67,148.52,9.33]
[1727213938564,6.7261,148.67,148.43,1.7547]
[1727213938565,9.33,148.61,148.56,9.33]
[1727213938867,9.33,148.61,148.48,11.46951855]
[1727213939065,9.33,148.61,148.55,9.33]
[1727213939270,3.3653,148.57,148.55,9.33]
[1727213940759,3.3647,148.6,148.56,9.33]
[1727213940964,4.0451,148.64,148.48,0.401]
[1727213940965,4.0451,148.64,148.59,9.33]
[1727213941166,4.0451,148.64,148.6,9.33]
[1727213941367,3.364,148.63,148.6,9.33]
[1727213941960,3.3641,148.62,148.6,9.33]
[1727213942767,3.3641,148.62,148.59,12.6946]
[1727213945761,56.70893787,148.65,148.6,9.33]
[1727213945970,4.0903,148.7,148.64,9.33]
[1727213946165,13.4203,148.7,148.65,9.33]
[1727213946366,3.3629,148.68,148.64,3.3635]
[1727213946562,3.3629,148.68,148.64,12.6935]
[1727213948567,3.3629,148.67,148.64,12.6935]
[1727213950979,3.3628,148.68,148.64,12.6935]
[1727213951171,3.3628,148.68,148.64,9.33]
[1727213951973,3.3628,148.68,148.64,12.6935]
[1727213952271,3.35869638,148.76,148.64,12.6935]
[1727213952272,9.33,148.75,148.67,9.33]
[1727213952478,3.35869638,148.76,148.7,9.33]
[1727213952479,2.6406,148.76,148.7,9.33]
[1727213952678,3.3614,148.74,148.7,9.33]
[1727213953580,3.3614,148.74,148.7,12.6922]
[1727213954583,3.3617,148.73,148.69,3.3625]
[1727213954884,3.3617,148.73,148.7,9.33]
[1727213955776,9.33,148.73,148.64,7.35975044]
[1727213955977,9.33,148.73,148.69,9.33]
[1727213956783,2.6406,148.76,148.7,9.33]
[1727213957085,2.6406,148.76,148.64,7.35975044]
[1727213957086,11.9706,148.76,148.71,9.33]
[1727213957380,2.6406,148.76,148.71,9.33]
[1727213958884,3.3613,148.75,148.71,12.692]
[1727213959983,3.3614,148.74,148.71,12.692]
[1727213960884,2.6406,148.76,148.72,12.6917]
[1727213961183,1.4022,148.78,148.74,9.33]
[1727213961684,3.3608,148.77,148.74,9.33]
[1727213966484,3.3609,148.76,148.74,9.33]
[1727213970985,3.3608,148.77,148.74,9.33]
[1727213973384,3.3612,148.75,148.71,3.3619]
[1727213973586,3.3612,148.75,148.72,9.33]
[1727213973888,3.3612,148.75,148.73,9.33]
[1727213975193,9.33,148.76,148.64,338.9542]
[1727213975491,9.33,148.73,148.64,0.9542]
[1727213975688,3.3618,148.72,148.69,9.33]
[1727213975885,9.33,148.73,148.69,9.33]
[1727213976090,9.33,148.74,148.7,9.33]
[1727213976792,3.3617,148.73,148.7,9.33]
[1727213979093,3.3617,148.73,148.69,3.3624]
[1727213979295,3.3617,148.73,148.7,9.33]
[1727213980194,3.362,148.71,148.67,3.3627]
[1727213980396,9.33,148.74,148.69,9.33]
[1727213980995,9.33,148.75,148.71,9.33]
[1727213981187,9.33,148.74,148.64,0.9542]
[1727213981388,9.33,148.74,148.69,9.33]
[1727213981698,3.3617,148.73,148.69,9.33]
[1727213982098,3.3617,148.73,148.69,12.6925]
[1727213982504,3.3619,148.72,148.69,9.33]
[1727213982796,9.33,148.74,148.69,9.33]
[1727213984696,3.3617,148.73,148.69,12.6924]
[1727213985098,9.33,148.75,148.71,9.33]
[1727213985399,3.3616,148.73,148.71,9.33]
[1727213985897,1.4286,148.79,148.71,12.692]
[1727213986190,9.33,148.76,148.71,12.692]
[1727213986395,3.3613,148.75,148.72,9.33]
[1727213986792,1.4286,148.79,148.72,12.6918]
[1727213986793,9.33,148.77,148.72,12.6918]
[1727213987193,3.3611,148.76,148.72,12.6918]
[1727213990797,3.3611,148.76,148.73,9.33]
[1727213990993,3.3611,148.76,148.75,9.33]
[1727213991301,3.3608,148.77,148.75,9.33]
[1727213992398,3.3605,148.78,148.75,12.691]
[1727213994508,3.3607,148.77,148.75,12.691]
[1727213995205,3.3607,148.77,148.75,3.361]
[1727214000209,9.33,148.76,148.65,6.7264]
[1727214000413,9.33,148.73,148.64,0.9542]
[1727214000609,9.33,148.71,148.64,0.9542]
[1727214000910,9.33,148.71,148.66,9.33]
[1727214001206,3.3624,148.7,148.66,9.33]
[1727214001612,2.7412,148.75,148.69,9.33]
[1727214001913,12.0712,148.75,148.71,9.33]
[1727214002210,12.0712,148.75,148.63,67.8896144]
[1727214002211,9.33,148.74,148.63,67.8896144]
[1727214002408,9.33,148.74,148.69,9.33]
[1727214002605,2.7412,148.75,148.69,9.33]
[1727214002606,3.3622,148.71,148.69,9.33]
[1727214002804,9.33,148.73,148.69,9.33]
[1727214003405,3.3623,148.7,148.67,3.3628]
[1727214003601,3.3623,148.7,148.68,9.33]
[1727214004344,3.3621,148.71,148.68,12.6927]
[1727214005008,3.3621,148.71,148.69,9.33]
[1727214005409,3.3619,148.72,148.69,9.33]
[1727214005605,2.7412,148.75,148.69,12.6923]
[1727214005809,9.33,148.74,148.69,12.6923]
[1727214006004,3.3617,148.73,148.69,12.6923]
[1727214006515,3.3618,148.72,148.69,12.6923]
[1727214006823,2.7412,148.75,148.63,67.8896144]
[1727214006824,2.7412,148.75,148.71,9.33]
[1727214007014,2.7412,148.75,148.72,9.33]
[1727214007207,3.3616,148.74,148.72,9.33]
[1727214008610,3.3616,148.74,148.71,3.3619]
[1727214008809,3.3616,148.74,148.72,9.33]
[1727214009406,6.1024,148.75,148.72,9.33]
[1727214009609,1.3289,148.75,148.73,9.33]
[1727214010118,1.3289,148.75,148.71,9.33]
[1727214010509,3.3618,148.73,148.71,9.33]
[1727214010920,1.373,148.78,148.71,9.33]
[1727214011116,1.373,148.78,148.65,7.34931249]
[1727214011314,1.373,148.78,148.73,9.33]
[1727214012517,3.3612,148.75,148.73,9.33]
[1727214013518,3.361,148.76,148.73,3.3616]
[1727214013719,1.373,148.78,148.65,338.9477]
[1727214013919,1.373,148.78,148.73,9.33]
[1727214014221,3.3611,148.76,148.73,9.33]
[1727214014616,10.703,148.78,148.73,9.33]
[1727214015122,10.703,148.78,148.72,3.3617]
[1727214015123,10.703,148.78,148.72,12.6917]
[1727214015323,3.3612,148.75,148.72,12.6917]
[1727214015723,10.703,148.78,148.73,12.6916]
[1727214016418,10.703,148.78,148.69,9.33]
[1727214016419,9.33,148.74,148.69,9.33]
[1727214016615,1.373,148.78,148.69,9.33]
[1727214016825,3.3613,148.75,148.71,3.362]
[1727214017119,9.33,148.76,148.7,9.33]
[1727214017727,3.3614,148.74,148.71,3.362]
[1727214018023,9.33,148.76,148.71,3.362]
[1727214018421,3.3613,148.75,148.71,3.362]
[1727214019926,12.691,148.76,148.72,12.6918]
[1727214020128,3.361,148.76,148.72,12.6918]
[1727214021027,1.373,148.78,148.74,9.33]
[1727214021337,1.383,148.8,148.76,9.33]
[1727214021629,3.3603,148.79,148.76,9.33]
[1727214022426,3.3605,148.78,148.76,9.33]
[1727214022931,3.3605,148.78,148.75,9.33]
[1727214024131,3.3605,148.78,148.75,12.6911]
[1727214024425,3.3605,148.78,148.76,9.33]
[1727214024822,3.3602,148.79,148.76,12.6909]
[1727214025023,3.3602,148.79,148.76,9.33]
[1727214025822,3.3605,148.78,148.75,9.33]
[1727214026027,3.3605,148.78,148.7,3.41973734]
[1727214026223,3.3605,148.78,148.75,9.33]
[1727214027827,3.3607,148.77,148.75,9.33]
[1727214028126,12.6907,148.77,148.73,12.6915]
[1727214028635,12.6907,148.77,148.74,3.3613]
[1727214029132,12.6907,148.77,148.73,9.33]
[1727214029836,12.6907,148.77,148.73,12.6915]
[1727214031231,12.6907,148.77,148.74,3.3613]
[1727214031732,12.6907,148.77,148.73,12.6915]
[1727214032434,12.6906,148.78,148.74,12.6913]
[1727214032635,9.33,148.78,148.74,12.6913]
[1727214032835,3.3608,148.77,148.74,3.3613]
[1727214033138,9.33,148.77,148.73,3.3615]
[1727214033332,3.3611,148.76,148.71,4.66422685]
[1727214033531,3.3611,148.76,148.71,13.99422685]
[1727214033836,3.3611,148.76,148.72,3.3617]
[1727214034337,9.33,148.77,148.72,3.3617]
[1727214035339,3.3612,148.75,148.72,3.3617]
[1727214035644,3.3612,148.75,148.72,12.6917]
[1727214036232,3.3612,148.75,148.71,3.3619]
[1727214036432,9.33,148.75,148.7,9.33]
[1727214036837,3.3617,148.73,148.7,12.6923]
[1727214037636,3.3617,148.73,148.7,9.33]
[1727214038140,9.33,148.71,148.66,3.363]
[1727214038348,9.33,148.71,148.66,12.693]
[1727214038538,1.3174,148.73,148.66,9.33]
[1727214038539,12.6924,148.7,148.66,9.33]
[1727214038838,1.3174,148.73,148.63,67.8896144]
[1727214039042,1.3174,148.73,148.7,9.33]
[1727214039043,3.3617,148.73,148.7,9.33]
[1727214040940,10.7134,148.75,148.71,9.33]
[1727214041146,1.3834,148.75,148.71,9.33]
[1727214041444,1.3834,148.75,148.73,9.33]
[1727214041863,4.7447,148.75,148.73,9.33]
[1727214042541,3.3614,148.74,148.72,3.3617]
[1727214043640,3.3614,148.74,148.71,9.33]
[1727214043641,10.7134,148.75,148.66,11.07990182]
[1727214043949,9.33,148.73,148.68,9.33]
[1727214044248,9.33,148.73,148.69,12.6924]
[1727214044249,3.3619,148.72,148.69,12.6924]
[1727214045843,3.3619,148.72,148.69,9.33]
[1727214046243,3.3621,148.71,148.64,0.9464]
[1727214046443,12.6921,148.71,148.67,9.33]
[1727214046649,9.33,148.7,148.66,3.363]
[1727214046948,12.6923,148.7,148.66,3.363]
[1727214048253,9.33,148.7,148.66,3.363]
[1727214049850,9.33,148.7,148.67,3.3629]
[1727214052950,9.33,148.7,148.67,12.6929]
[1727214053546,9.33,148.7,148.67,3.3629]
[1727214053746,9.33,148.7,148.67,12.6929]
[1727214054147,9.33,148.7,148.67,3.3629]
[1727214057147,9.33,148.68,148.63,67.8896144]
[1727214057354,9.33,148.67,148.63,67.8896144]
[1727214057851,9.33,148.68,148.65,3.3633]
[1727214059148,12.6927,148.68,148.65,3.3633]
[1727214059349,9.33,148.68,148.65,3.3633]
[1727214059549,9.33,148.68,148.66,3.3632]
[1727214061145,4.7937,148.69,148.66,3.3632]
[1727214061347,9.33,148.67,148.6,9.33]
[1727214061555,9.33,148.65,148.56,6.7308]
[1727214061752,9.33,148.65,148.6,9.33]
[1727214061989,9.33,148.65,148.62,3.3639]
[1727214062653,9.33,148.65,148.63,3.3638]
[1727214063660,9.33,148.65,148.62,3.364]
[1727214064562,9.33,148.65,148.63,3.3638]
[1727214065362,3.3633,148.66,148.63,3.3638]
[1727214065666,12.6933,148.66,148.63,3.3638]
[1727214068459,9.33,148.66,148.63,3.3638]
[1727214071067,12.6932,148.66,148.63,3.3638]
[1727214072574,9.33,148.65,148.63,3.3638]
[1727214072872,9.33,148.65,148.62,3.3639]
[1727214075862,12.6934,148.65,148.62,3.3639]
[1727214078273,3.3634,148.65,148.62,3.3639]
[1727214078467,3.3632,148.67,148.62,9.33]
[1727214078670,1.4311,148.69,148.64,9.33]
[1727214079070,3.3629,148.68,148.64,12.6935]
[1727214081081,3.3629,148.68,148.65,3.3633]
[1727214081277,4.7937,148.69,148.65,3.3633]
[1727214083078,3.3627,148.68,148.65,3.3633]
[1727214083392,3.3627,148.68,148.64,12.6935]
[1727214084687,3.3629,148.67,148.64,12.6935]
[1727214086078,3.3633,148.66,148.59,0.95]
[1727214086283,3.3633,148.66,148.61,9.33]
[1727214086781,3.3633,148.66,148.62,9.33]
[1727214086989,12.6931,148.67,148.62,9.33]
[1727214087183,3.3631,148.67,148.62,9.33]
[1727214088276,3.3631,148.67,148.63,3.3637]
[1727214088479,3.3631,148.67,148.62,9.33]
[1727214089191,3.3631,148.67,148.63,3.3637]
[1727214094888,3.3632,148.66,148.62,3.3639]
[1727214095085,3.3632,148.66,148.62,12.6939]
[1727214102020,12.6932,148.66,148.62,12.6939]
[1727214102498,1.4311,148.69,148.61,3.3642]
[1727214102697,9.33,148.64,148.61,3.3642]
[1727214103894,12.6937,148.64,148.61,3.3642]
[1727214105699,12.6938,148.63,148.57,6.41041933]
[1727214105897,12.6938,148.63,148.58,15.74041933]
[1727214106099,12.6938,148.63,148.59,11.06721753]
[1727214106301,12.6938,148.63,148.59,3.3645]
[1727214106494,12.6938,148.63,148.6,4.65777567]
[1727214106695,12.6938,148.63,148.59,3.3645]
[1727214106902,12.6938,148.63,148.6,4.65770812]
[1727214107100,9.33,148.63,148.59,3.3645]
[1727214107301,9.33,148.63,148.6,4.65780299]
[1727214107501,9.33,148.63,148.59,3.3645]
[1727214107703,12.6938,148.63,148.59,3.3645]
[1727214108097,12.6945,148.6,148.56,70.67906716]
[1727214108294,9.33,148.58,148.57,4.65939828]
[1727214108605,9.33,148.58,148.56,70.67906716]
[1727214109301,9.33,148.59,148.56,74.04436716]
[1727214111802,12.6948,148.59,148.56,70.67906716]
[1727214112205,9.33,148.59,148.56,70.67906716]
[1727214113807,12.6947,148.6,148.56,83.37446716]
[1727214114504,4.0378,148.62,148.57,9.33]
[1727214114704,9.33,148.66,148.56,70.67906716]
[1727214115002,9.33,148.65,148.61,9.33]
[1727214115604,3.3637,148.64,148.61,9.33]
[1727214115907,2.6339,148.67,148.61,9.33]
[1727214116206,11.9639,148.67,148.62,9.33]
[1727214116598,2.6339,148.67,148.63,9.33]
[1727214117497,5.997,148.67,148.63,9.33]
[1727214118301,5.997,148.67,148.62,12.6938]
[1727214119207,5.997,148.67,148.63,3.3638]